fUST/lending_fUST_20250305
["ID","MTS","AMOUNT","RATE_DAILY","PERIOD"]
[355462234,1741187455699,-500.0,0.00039452,9]
[355462235,1741187455708,-500.0,0.00039452,9]
[355462236,1741187455718,-500.0,0.00039452,9]
[355462237,1741187455727,-649.96387435,0.00039452,9]
[355462238,1741187455737,-1873.37,0.00039452,120]
[355462239,1741187455747,-500.0,0.00039452,9]
[355462240,1741187455756,-500.0,0.00039452,9]
[355462241,1741187455766,-500.0,0.00039452,9]
[355462242,1741187455775,-500.0,0.00039452,9]
[355462243,1741187455785,-738.55,0.00039452,9]
[355462244,1741187455795,-500.0,0.00039452,9]
[355462245,1741187455804,-500.0,0.00039452,9]
[355462246,1741187455814,-500.0,0.00039452,9]
[355462247,1741187455823,-937.75,0.00039452,9]
[355462248,1741187455833,-508.24,0.00039452,9]
[355462249,1741187455842,-500.0,0.00039452,9]
[355462250,1741187455851,-500.0,0.00039452,9]
[355462251,1741187455861,-500.0,0.00039452,9]
[355462252,1741187455870,-500.0,0.00039452,9]
[355462253,1741187455879,-500.0,0.00039452,9]
[355462254,1741187455888,-2318.05,0.00039452,5]
[355462255,1741187455898,-500.0,0.00039452,9]
[355462256,1741187455907,-500.0,0.00039452,9]
[355462257,1741187455916,-500.0,0.00039452,9]
[355462258,1741187455928,-860.37,0.00039452,9]
[355462259,1741187455938,-500.0,0.00039452,9]
[355462260,1741187455947,-500.0,0.00039452,9]
[355462261,1741187455957,-500.0,0.00039452,9]
[355462262,1741187455966,-771.79,0.00039452,9]
[355462263,1741187455980,-500.0,0.00039452,9]
[355462264,1741187455990,-500.0,0.00039452,9]
[355462265,1741187455999,-500.0,0.00039452,9]
[355462266,1741187456010,-500.0,0.00039452,9]
[355462267,1741187456019,-500.0,0.00039452,9]
[355462268,1741187456029,-500.0,0.00039452,9]
[355462269,1741187456038,-523.64,0.00039452,9]
[355462270,1741187456048,-505.82,0.00039452,9]
[355462271,1741187456058,-500.0,0.00039452,9]
[355462272,1741187456068,-500.0,0.00039452,9]
[355462273,1741187456077,-500.0,0.00039452,9]
[355462274,1741187456086,-500.0,0.00039452,9]
[355462275,1741187456096,-500.0,0.00039452,9]
[355462276,1741187456105,-985.14,0.00039452,9]
[355462277,1741187456115,-500.0,0.00039452,9]
[355462278,1741187456125,-500.0,0.00039452,9]
[355462279,1741187456134,-500.0,0.00039452,9]
[355462280,1741187456143,-500.0,0.00039452,9]
[355462281,1741187456154,-512.0818099,0.00039452,9]
[355462282,1741187456163,-500.0,0.00039452,9]
[355462283,1741187456173,-500.0,0.00039452,9]
[355462284,1741187456185,-500.0,0.00039452,9]
[355462285,1741187456195,-500.0,0.00039452,9]
[355462286,1741187456204,-500.0,0.00039452,9]
[355462287,1741187456213,-1284.99,0.00039452,9]
[355462288,1741187456222,-657.32,0.00039452,9]
[355462289,1741187456231,-758.14,0.00039452,9]
[355462290,1741187456241,-500.0,0.00039452,9]
[355462291,1741187456250,-1083.31,0.00039452,9]
[355462292,1741187456259,-500.0,0.00039452,9]
[355462293,1741187456268,-500.0,0.00039452,9]
[355462294,1741187456277,-500.0,0.00039452,9]
[355462295,1741187456288,-1106.01,0.00039452,9]
[355462296,1741187456297,-500.0,0.00039452,9]
[355462297,1741187456306,-500.0,0.00039452,9]
[355462298,1741187456316,-500.0,0.00039452,9]
[355462299,1741187456325,-1928.03,0.00039452,9]
[355462300,1741187456335,-500.0,0.00039452,9]
[355462301,1741187456344,-203.83389259,0.00039452,9]
[355462302,1741187456353,-817.64,0.00039452,9]
[355462303,1741187456363,-531.6,0.00039452,9]
[355462304,1741187456372,-500.0,0.00039452,9]
[355462305,1741187456381,-500.0,0.00039452,9]
[355462306,1741187456390,-3986.96,0.00039452,9]
[355462307,1741187456400,-500.0,0.00039452,9]
[355462308,1741187456410,-500.0,0.00039452,9]
[355462309,1741187456420,-185.42520493,0.00039452,9]
[355462310,1741187456432,-921.02,0.00039452,9]
[355462311,1741187456442,-1245.88,0.00039452,9]
[355462312,1741187456452,-500.0,0.00039452,9]
[355462313,1741187456462,-502.82,0.00039452,9]
[355462314,1741187456472,-500.0,0.00039452,9]
[355462315,1741187456481,-500.0,0.00039452,9]
[355462316,1741187456491,-500.0,0.00039452,9]
[355462317,1741187456501,-500.0,0.00039452,9]
[355462318,1741187456510,-1084.9,0.00039452,9]
[355462319,1741187456519,-500.0,0.00039452,9]
[355462320,1741187456529,-7521.21,0.00039452,9]
[355462321,1741187456539,-618.82,0.00039452,9]
[355462322,1741187456549,-573.46070003,0.00039452,9]
[355462323,1741187456559,-500.0,0.00039452,9]
[355462324,1741187456568,-585.77,0.00039452,9]
[355462325,1741187456578,-160.7008346,0.00039452,9]
[355462326,1741187456589,-2272.97,0.00039452,9]
[355462327,1741187456599,-500.0,0.00039452,9]
[355462328,1741187456608,-5677.26,0.00039452,9]
[355462329,1741187456618,-529.29,0.00039452,9]
[355462330,1741187456627,-539.57,0.00039452,9]
[355462331,1741187456637,-500.0,0.00039452,9]
[355462332,1741187456647,-500.0,0.00039452,9]
[355462333,1741187456657,-701.36,0.00039452,9]
[355462334,1741187456666,-1395.99,0.00039452,9]
[355462335,1741187456676,-1929.72,0.00039452,9]
[355462336,1741187456690,-1284.38,0.00039452,9]
[355462337,1741187456700,-500.0,0.00039452,9]
[355462338,1741187456711,-650.87,0.00039452,9]
[355462339,1741187456721,-500.0,0.00039452,9]
[355462340,1741187456731,-1611.48,0.00039452,9]
[355462341,1741187456741,-500.0,0.00039452,9]
[355462342,1741187456752,-840.36,0.00039452,9]
[355462343,1741187456763,-1170.43,0.00039452,9]
[355462344,1741187456773,-500.0,0.00039452,9]
[355462345,1741187456783,-500.0,0.00039452,9]
[355462346,1741187456792,-500.0,0.00039452,9]
[355462347,1741187456803,-500.0,0.00039452,9]
[355462348,1741187456813,-500.0,0.00039452,9]
[355462349,1741187456823,-500.0,0.00039452,9]
[355462350,1741187456832,-725.8,0.00039452,9]
[355462351,1741187456842,-546.94,0.00039452,9]
[355462352,1741187456852,-637.61,0.00039452,9]
[355462353,1741187456861,-646.13,0.00039452,9]
[355462354,1741187456871,-737.2,0.00039452,9]
[355462355,1741187456880,-500.0,0.00039452,9]
[355462356,1741187456890,-500.0,0.00039452,9]
[355462357,1741187456899,-996.5,0.00039452,9]
[355462358,1741187456910,-814.02,0.00039452,9]
[355462359,1741187456919,-500.0,0.00039452,9]
[355462360,1741187456932,-500.0,0.00039452,9]
[355462361,1741187456942,-500.0,0.00039452,9]
[355462362,1741187456951,-9594.6,0.00039452,9]
[355462363,1741187456961,-500.0,0.00039452,9]
[355462364,1741187456971,-881.98,0.00039452,9]
[355462365,1741187456983,-500.0,0.00039452,9]
[355462366,1741187456993,-500.0,0.00039452,9]
[355462367,1741187457002,-788.92,0.00039452,9]
[355462368,1741187457012,-500.0,0.00039452,9]
[355462369,1741187457023,-75618.68,0.00039452,7]
[355462370,1741187457032,-500.0,0.00039452,9]
[355462371,1741187457042,-500.0,0.00039452,9]
[355462372,1741187457052,-500.0,0.00039452,9]
[355462373,1741187457062,-500.0,0.00039452,9]
[355462374,1741187457071,-1623.5,0.00039452,9]
[355462375,1741187457081,-500.0,0.00039452,9]
[355462376,1741187457090,-500.0,0.00039452,9]
[355462377,1741187457099,-525.65,0.00039452,9]
[355462378,1741187457109,-500.0,0.00039452,9]
[355462379,1741187457118,-500.0,0.00039452,9]
[355462380,1741187457127,-2022.1,0.00039452,9]
[355462381,1741187457136,-500.0,0.00039452,9]
[355462382,1741187457146,-500.0,0.00039452,9]
[355462383,1741187457155,-4524.2,0.00039452,9]
[355462384,1741187457164,-500.0,0.00039452,9]
[355462385,1741187457174,-323.60438888,0.00039452,9]
[355462386,1741187457185,-500.0,0.00039452,9]
[355462387,1741187457195,-643.34,0.00039452,9]
[355462388,1741187457205,-820.66,0.00039452,9]
[355462389,1741187457214,-904.71,0.00039452,9]
[355462390,1741187457223,-500.0,0.00039452,9]
[355462391,1741187457233,-697.33,0.00039452,9]
[355462392,1741187457243,-500.0,0.00039452,9]
[355462393,1741187457252,-5134.24,0.00039452,9]
[355462394,1741187457262,-500.0,0.00039452,9]
[355462395,1741187457271,-500.0,0.00039452,9]
[355462396,1741187457281,-616.65,0.00039452,9]
[355462397,1741187457290,-500.0,0.00039452,9]
[355462398,1741187457300,-500.0,0.00039452,9]
[355462399,1741187457311,-500.0,0.00039452,9]
[355462400,1741187457320,-500.0,0.00039452,9]
[355462401,1741187457330,-500.0,0.00039452,9]
[355462402,1741187457340,-1097.64,0.00039452,9]
[355462403,1741187457349,-500.0,0.00039452,9]
[355462404,1741187457359,-1523.34,0.00039452,9]
[355462405,1741187457368,-500.0,0.00039452,9]
[355462406,1741187457377,-757.05,0.00039452,9]
[355462407,1741187457387,-500.0,0.00039452,9]
[355462408,1741187457396,-500.0,0.00039452,9]
[355462409,1741187457406,-500.0,0.00039452,9]
[355462410,1741187457415,-500.0,0.00039452,9]
[355462411,1741187457424,-1237.39,0.00039452,9]
[355462412,1741187457438,-500.0,0.00039452,9]
[355462413,1741187457447,-500.0,0.00039452,9]
[355462414,1741187457457,-500.0,0.00039452,9]
[355462415,1741187457466,-16251.55,0.00039452,9]
[355462416,1741187457475,-1244.66,0.00039452,9]
[355462417,1741187457484,-500.0,0.00039452,9]
[355462418,1741187457494,-500.0,0.00039452,9]
[355462419,1741187457503,-500.0,0.00039452,9]
[355462420,1741187457512,-500.0,0.00039452,9]
[355462421,1741187457521,-588.20835425,0.00039452,9]
[355462422,1741187457530,-520.22,0.00039452,9]
[355462423,1741187457539,-1365.03,0.00039452,9]
[355462424,1741187457548,-4689.59,0.00039452,9]
[355462425,1741187457558,-1167.86,0.00039452,9]
[355462426,1741187457567,-500.0,0.00039452,9]
[355462427,1741187457577,-1825.04,0.00039452,9]
[355462428,1741187457586,-500.0,0.00039452,9]
[355462429,1741187457596,-500.0,0.00039452,9]
[355462430,1741187457606,-652.97,0.00039452,9]
[355462431,1741187457615,-500.0,0.00039452,9]
[355462432,1741187457625,-842.5,0.00039452,9]
[355462433,1741187457634,-500.0,0.00039452,9]
[355462434,1741187457644,-1406.81,0.00039452,9]
[355462435,1741187457654,-1000.0,0.00039452,9]
[355462436,1741187457663,-1016.80706188,0.00039452,9]
[355462437,1741187458123,-416.66666667,0.00037053,2]
[355462438,1741187458133,-4532.68293812,0.00039452,9]
[355462439,1741187458143,-6361.75,0.00039452,9]
[355462440,1741187458152,-878.95,0.00039452,9]
[355462441,1741187458162,-500.0,0.00039452,9]
[355462442,1741187458171,-500.0,0.00039452,9]
[355462443,1741187458183,-577.98,0.00039452,9]
[355462444,1741187458193,-402.43514175,0.00039473,5]
[355462445,1741187458202,-1873.37,0.00039589,120]
[355462446,1741187458212,-500.0,0.00039726,9]
[355462447,1741187458221,-500.0,0.00039726,9]
[355462448,1741187458231,-500.0,0.00039726,9]
[355462449,1741187458240,-500.0,0.00039726,9]
[355462450,1741187458249,-521.52,0.00039726,9]
[355462451,1741187458259,-500.0,0.00039726,9]
[355462452,1741187458268,-151.0,0.00039726,14]
[355462453,1741187458277,-151.0,0.00039726,14]
[355462454,1741187458287,-575.84,0.00039726,120]
[355462455,1741187458296,-500.0,0.00039726,9]
[355462456,1741187458306,-500.0,0.00039726,9]
[355462457,1741187458315,-500.0,0.00039726,9]
[355462458,1741187458324,-500.0,0.00039726,9]
[355462459,1741187458334,-999.47805056,0.00039726,120]
[355462460,1741187458343,-507.8,0.00039726,9]
[355462461,1741187458353,-500.0,0.00039726,9]
[355462462,1741187458363,-500.0,0.00039726,9]
[355462463,1741187458372,-151.0,0.00039726,14]
[355462464,1741187458381,-500.0,0.00039726,9]
[355462465,1741187458391,-548.59,0.00039726,9]
[355462466,1741187458400,-500.0,0.00039726,9]
[355462467,1741187458409,-559.52407447,0.00039726,9]
[355462468,1741187458419,-588.21655241,0.00039726,9]
[355462469,1741187458432,-604.65479786,0.00039726,9]
[355462470,1741187458444,-500.0,0.00039726,9]
[355462471,1741187458453,-500.0,0.00039726,9]
[355462472,1741187458463,-550.04839973,0.00039726,9]
[355462473,1741187458472,-524.767987,0.00039726,9]
[355462474,1741187458482,-500.0,0.00039726,9]
[355462475,1741187458491,-500.0,0.00039726,9]
[355462476,1741187458501,-151.0,0.00039726,14]
[355462477,1741187458510,-536.96,0.00039726,9]
[355462478,1741187458520,-500.0,0.00039726,9]
[355462479,1741187458529,-500.0,0.00039726,9]
[355462480,1741187458539,-500.0,0.00039726,9]
[355462481,1741187458548,-500.0,0.00039726,9]
[355462482,1741187458558,-500.0,0.00039726,9]
[355462483,1741187458567,-500.0,0.00039726,9]
[355462484,1741187458577,-500.0,0.00039726,9]
[355462485,1741187458586,-500.0,0.00039726,9]
[355462486,1741187458595,-500.0,0.00039726,9]
[355462487,1741187458605,-500.0,0.00039726,9]
[355462488,1741187458614,-566.76,0.00039726,9]
[355462489,1741187458624,-500.0,0.00039726,9]
[355462490,1741187458633,-500.0,0.00039726,9]
[355462491,1741187458642,-500.0,0.00039726,9]
[355462492,1741187458651,-500.0,0.00039726,9]
[355462493,1741187458661,-500.0,0.00039726,9]
[355462494,1741187458670,-261.60869826,0.00039726,9]
[355462495,1741187458682,-1344.2,0.00039726,9]
[355462496,1741187458691,-500.0,0.00039726,9]
[355462497,1741187458701,-500.0,0.00039726,9]
[355462498,1741187458711,-546.56,0.00039726,9]
[355462499,1741187458721,-500.0,0.00039726,9]
[355462500,1741187458731,-500.0,0.00039726,9]
[355462501,1741187458741,-585.08,0.00039726,9]
[355462502,1741187458750,-500.0,0.00039726,9]
[355462503,1741187458759,-754.45,0.00039726,9]
[355462504,1741187458769,-539.85,0.00039726,9]
[355462505,1741187458779,-550.09,0.00039726,9]
[355462506,1741187458788,-500.0,0.00039726,9]
[355462507,1741187458797,-1012.28,0.00039726,9]
[355462508,1741187458807,-500.0,0.00039726,9]
[355462509,1741187458816,-500.0,0.00039726,9]
[355462510,1741187458825,-500.0,0.00039726,9]
[355462511,1741187458835,-500.0,0.00039726,9]
[355462512,1741187458845,-1566.62640211,0.00039726,120]
[355462513,1741187458859,-306.74359789,0.00039726,120]
[355462514,1741187458868,-500.0,0.00039726,9]
[355462515,1741187458877,-500.0,0.00039726,9]
[355462516,1741187458887,-500.0,0.00039726,9]
[355462517,1741187458898,-500.0,0.00039726,9]
[355462518,1741187458907,-347.41350088,0.00039726,9]
[355462519,1741187458936,-274.82922505,0.00039726,9]
[355462520,1741187458947,-116.30727407,0.00039726,9]
[355462521,1741187458957,-500.0,0.00039726,9]
[355462522,1741187458967,-500.0,0.00039726,9]
[355462523,1741187458978,-504.35581107,0.00039726,9]
[355462524,1741187458988,-879.33691486,0.00039726,9]
[355462525,1741187459150,-58.41308514,0.00039726,9]
[355462526,1741187459159,-508.24,0.00039726,9]
[355462527,1741187459169,-500.0,0.00039726,9]
[355462528,1741187459180,-500.0,0.00039726,9]
[355462529,1741187459190,-500.0,0.00039726,9]
[355462530,1741187459199,-412.31665362,0.00039726,9]
[355462531,1741187459207,-557.47705946,0.00039726,9]
[355462532,1741187459216,-2318.05,0.00039726,5]
[355462533,1741187459225,-500.0,0.00039726,9]
[355462534,1741187459233,-500.0,0.00039726,9]
[355462535,1741187459242,-531.970745,0.00039726,9]
[355462536,1741187459250,-860.37,0.00039726,9]
[355462537,1741187459259,-500.0,0.00039726,9]
[355462538,1741187459267,-37.4589798,0.00039726,9]
[355462539,1741187459315,-462.5410202,0.00039726,9]
[355462540,1741187459326,-37.4557123,0.00039726,9]
[355462541,1741187459361,-397.0,0.00038547,2]
[355462542,1741187459371,-462.5442877,0.00039726,9]
[355462543,1741187459381,-291.4557123,0.00039726,9]
[355462544,1741187459394,-208.5442877,0.00039726,9]
[355462545,1741187459403,-771.79,0.00039726,9]
[355462546,1741187459414,-500.0,0.00039726,9]
[355462547,1741187459423,-500.0,0.00039726,9]
[355462548,1741187459435,-500.0,0.00039726,9]
[355462549,1741187459444,-500.0,0.00039726,9]
[355462550,1741187459454,-500.0,0.00039726,9]
[355462551,1741187459463,-523.64,0.00039726,9]
[355462552,1741187459474,-505.82,0.00039726,9]
[355462553,1741187459483,-500.0,0.00039726,9]
[355462554,1741187459493,-94.76515562,0.00039726,9]
[355462555,1741187459505,-405.23484438,0.00039726,9]
[355462556,1741187459515,-500.0,0.00039726,9]
[355462557,1741187459524,-500.0,0.00039726,9]
[355462558,1741187459534,-500.0,0.00039726,9]
[355462559,1741187459543,-483.29274169,0.00039726,9]
[355462565,1741187758687,1470.0541602,0.00016,2]
[355462573,1741188400138,-192.4509076,0.00028,3]
[355462577,1741188518477,1633.384341,0.00026,30]
[355462578,1741188524379,63922.77274559,0.0003,30]
[355462636,1741188632349,-224.21575907,0.00028,3]
[355462638,1741188632359,-416.66666667,0.00028,3]
[355462640,1741188632373,-416.66666667,0.00028,3]
[355462642,1741188632383,-416.66666667,0.00028,3]
[355462644,1741188632392,-300.0,0.00029999,2]
[355462646,1741188632402,-1633.384341,0.0003,30]
[355462648,1741188632413,-679.86078465,0.00030266,2]
[355462650,1741188632423,-420.0,0.00032332,2]
[355462652,1741188632436,-500.0,0.00033,10]
[355462654,1741188632448,-363.0,0.00034847,2]
[355462657,1741188632459,-1577.778663,0.00034871,2]
[355462658,1741188632469,-1022.7,0.00035,2]
[355462661,1741188632479,-160.0,0.00035355,2]
[355462663,1741188632489,-161.1884485,0.00035438,2]
[355462664,1741188632499,-206.4210659,0.00035464,2]
[355462666,1741188632509,-1886.819235,0.00035487,2]
[355462669,1741188632519,-250.0,0.00035729,2]
[355462671,1741188632528,-500.0,0.0003589,2]
[355462672,1741188632538,-164.0,0.0003589,2]
[355462675,1741188632548,-164.0,0.00036,2]
[355462677,1741188632558,-164.0,0.00037397,2]
[355462678,1741188632567,-416.66666667,0.00037503,2]
[355462680,1741188632577,-689.96304698,0.00037817,2]
[355462682,1741188632587,-472.57478025,0.000379,8]
[355462684,1741188632596,-1326.97,0.00037917,120]
[355462686,1741188632606,-1326.97,0.00037917,120]
[355462689,1741188632616,-1326.97,0.00037917,120]
[355462691,1741188632626,-1326.97,0.00037917,120]
[355462693,1741188632636,-1326.97,0.00037917,120]
[355462694,1741188632645,-1326.97,0.00037917,120]
[355462697,1741188632656,-1326.97,0.00037917,120]
[355462699,1741188632666,-1326.97,0.00037917,120]
[355462701,1741188632675,-1326.97,0.00037917,120]
[355462703,1741188632689,-1326.97,0.00037917,120]
[355462704,1741188632698,-1326.97,0.00037917,120]
[355462706,1741188632707,-1326.97,0.00037917,120]
[355462709,1741188632717,-1326.97,0.00037917,120]
[355462710,1741188632727,-1326.97,0.00037917,120]
[355462712,1741188632736,-1326.97,0.00037917,120]
[355462714,1741188632746,-1326.97,0.00037917,120]
[355462716,1741188632755,-1326.97,0.00037917,120]
[355462718,1741188632765,-1326.97,0.00037917,120]
[355462720,1741188632774,-1326.97,0.00037917,120]
[355462722,1741188632784,-1326.97,0.00037917,120]
[355462724,1741188632793,-1326.97,0.00037917,120]
[355462726,1741188632803,-1326.97,0.00037917,120]
[355462728,1741188632813,-1326.97,0.00037917,120]
[355462730,1741188632822,-1327.04401568,0.00037917,120]
[355462732,1741188632832,-416.66666667,0.00037917,120]
[355462734,1741188632842,-319.77558276,0.00037946,3]
[355462736,1741188632852,-340.76,0.00037955,2]
[355462738,1741188632862,-340.76,0.00037955,2]
[355462740,1741188632871,-340.76,0.00037955,2]
[355462742,1741188632881,-340.76,0.00037955,2]
[355462744,1741188632891,-340.76,0.00037955,2]
[355462746,1741188632901,-340.76,0.00037955,2]
[355462748,1741188632910,-340.76,0.00037955,2]
[355462750,1741188632919,-340.76,0.00037955,2]
[355462752,1741188632930,-340.76,0.00037955,2]
[355462754,1741188632940,-340.76,0.00037955,2]
[355462756,1741188632950,-500.0,0.00037955,15]
[355462758,1741188632961,-500.0,0.00037955,2]
[355462760,1741188632971,-582.66194041,0.00037955,15]
[355462762,1741188632981,-500.0,0.00037955,2]
[355462764,1741188632991,-500.0,0.00037955,15]
[355462766,1741188633000,-500.0,0.00037955,2]
[355462768,1741188633010,-500.0,0.00037955,2]
[355462770,1741188633020,-500.0,0.00037955,15]
[355462772,1741188633029,-571.71894786,0.00037955,2]
[355462774,1741188633040,-500.0,0.00037955,2]
[355462776,1741188633050,-500.0,0.00037955,15]
[355462778,1741188633062,-500.0,0.00037955,2]
[355462780,1741188633072,-500.0,0.00037955,15]
[355462783,1741188633083,-500.0,0.00037955,2]
[355462785,1741188633092,-500.0,0.00037955,2]
[355462787,1741188633103,-500.0,0.00037955,15]
[355462789,1741188633112,-500.0,0.00037955,2]
[355462791,1741188633122,-500.0,0.00037955,2]
[355462793,1741188633131,-500.0,0.00037955,2]
[355462795,1741188633141,-500.0,0.00037955,2]
[355462797,1741188633151,-500.0,0.00037955,2]
[355462798,1741188633161,-500.0,0.00037955,2]
[355462800,1741188633170,-500.0,0.00037955,2]
[355462802,1741188633183,-500.0,0.00037955,2]
[355462804,1741188633192,-500.0,0.00037955,2]
[355462807,1741188633203,-500.0,0.00037955,2]
[355462809,1741188633213,-500.0,0.00037955,2]
[355462811,1741188633222,-500.0,0.00037955,2]
[355462813,1741188633232,-500.0,0.00037955,2]
[355462815,1741188633242,-500.0,0.00037955,2]
[355462817,1741188633252,-500.0,0.00037955,2]
[355462819,1741188633262,-500.0,0.00037955,2]
[355462821,1741188633272,-500.0,0.00037955,2]
[355462823,1741188633282,-500.0,0.00037955,2]
[355462825,1741188633291,-500.0,0.00037955,2]
[355462827,1741188633301,-500.0,0.00037955,2]
[355462829,1741188633310,-500.0,0.00037955,2]
[355462831,1741188633320,-500.0,0.00037955,2]
[355462833,1741188633330,-150.0,0.00037955,2]
[355462835,1741188633340,-58504.99593151,0.00037956,2]
[355462837,1741188633354,-125161.97892657,0.00037956,2]
[355462839,1741188633367,-5019.24190067,0.00037956,2]
[355462841,1741188633379,-1490.29496725,0.00037956,2]
[355462844,1741188633396,-1276.36131369,0.00037956,2]
[355462846,1741188633408,-1789.06,0.00037956,2]
[355463148,1741188638079,-28758.06696031,0.00037956,2]
[355463150,1741188638089,-500.0,0.00037973,5]
[355463152,1741188638099,-500.0,0.00037973,5]
[355463154,1741188638108,-500.0,0.00037973,5]
[355463155,1741188638118,-500.0,0.00037973,5]
[355463156,1741188638127,-500.32403557,0.00037973,5]
[355463157,1741188638137,-500.76299693,0.00037973,5]
[355463158,1741188638146,-500.0,0.00037973,2]
[355463159,1741188638156,-500.0,0.00037973,5]
[355463160,1741188638166,-210.48232685,0.00037973,5]
[355463161,1741188638176,-499.0825377,0.00037973,5]
[355463162,1741188638186,-500.0,0.00037973,5]
[355463163,1741188638197,-500.38763977,0.00037973,5]
[355463165,1741188638207,-475.47606803,0.00037999,15]
[355463167,1741188638216,-500.0,0.00037999,15]
[355463169,1741188638225,-358.33568717,0.00037999,15]
[355463171,1741188638234,-588.52993064,0.00037999,15]
[355463173,1741188638244,-261.97095145,0.00037999,15]
[355463175,1741188638253,-1015.4,0.00038,30]
[355463177,1741188638263,-1201.29,0.00038,30]
[355463180,1741188638272,-481.77,0.00038,30]
[355463183,1741188638282,-200.0,0.00038,120]
[355463185,1741188638291,-1500.0,0.00038,2]
[355463187,1741188638300,-1500.0,0.00038,2]
[355463188,1741188638310,-1500.0,0.00038,2]
[355463190,1741188638319,-1500.0,0.00038,2]
[355463193,1741188638329,-1500.0,0.00038,2]
[355463194,1741188638339,-1500.0,0.00038,2]
[355463197,1741188638349,-1500.0,0.00038,2]
[355463198,1741188638358,-1500.0,0.00038,2]
[355463200,1741188638371,-44698.7995849,0.00038,15]
[355463203,1741188638381,-623.08342561,0.00038,2]
[355463204,1741188638391,-3000.0,0.00038256,2]
[355463207,1741188638401,-600.5326835,0.00038296,4]
[355463208,1741188638411,-532.9593046,0.00038346,3]
[355463211,1741188638422,-1000.0,0.00038355,120]
[355463213,1741188638431,-596.0061564,0.00038356,9]
[355463214,1741188638443,-500.0,0.00038356,9]
[355463216,1741188638453,-207.82561009,0.00038356,9]
[355463218,1741188638464,-500.0,0.00038356,9]
[355463221,1741188638474,-500.0,0.00038356,9]
[355463222,1741188638483,-500.0,0.00038356,9]
[355463224,1741188638492,-500.0,0.00038356,9]
[355463226,1741188638502,-500.0,0.00038356,9]
[355463228,1741188638511,-500.0,0.00038356,9]
[355463230,1741188638521,-500.0,0.00038356,9]
[355463232,1741188638531,-500.0,0.00038356,9]
[355463234,1741188638540,-500.0,0.00038356,9]
[355463256,1741188638744,-517.11196735,0.00038356,9]
[355463258,1741188638754,-500.0,0.00038356,9]
[355463260,1741188638765,-500.0,0.00038356,9]
[355463262,1741188638776,-500.0,0.00038356,9]
[355463264,1741188638786,-500.0,0.00038356,9]
[355463266,1741188638797,-500.0,0.00038356,9]
[355463268,1741188638807,-500.0,0.00038356,9]
[355463270,1741188638817,-500.0,0.00038356,9]
[355463272,1741188638827,-500.0,0.00038356,9]
[355463273,1741188638836,-500.0,0.00038356,9]
[355463275,1741188638846,-500.0,0.00038356,9]
[355463277,1741188638856,-500.0,0.00038356,9]
[355463279,1741188638866,-500.0,0.00038356,9]
[355463281,1741188638875,-512.0818099,0.00038356,9]
[355463283,1741188638885,-500.0,0.00038356,9]
[355463285,1741188638895,-500.0,0.00038356,9]
[355463287,1741188638904,-500.0,0.00038356,9]